[Event "Titled Tuesday Blitz May 24 Late 2022"]
[White "Antonio, Jorge Carlos"]
[Black "Peralta, Eduardo"]
[WhiteFideId "113190"]
[BlackFideId "3700062"]
[WhiteElo "2247"]
[BlackElo "2125"]
[Result "1-0"]
[Round "06"]
[TimeControl "180+1"]
[Date "2022.05.25"]
[WhiteClock "0:00:18"]
[BlackClock "0:00:02"]

1. d4 {[%clk 0:03:00]}  Nf6 {[%clk 0:02:59]} 2. Nf3 {[%clk 0:03:00]}  g6 {[%clk 0:02:59]} 3. c4 {[%clk 0:02:55]}  Bg7 {[%clk 0:03:00]} 4. Nc3 {[%clk 0:02:55]}  O-O {[%clk 0:03:00]} 5. e4 {[%clk 0:02:55]}  d6 {[%clk 0:03:00]} 6. Be2 {[%clk 0:02:55]}  Bg4 {[%clk 0:03:01]} 7. O-O {[%clk 0:02:54]}  Nfd7 {[%clk 0:02:32]} 8. h3 {[%clk 0:02:52]}  Bxf3 {[%clk 0:02:31]} 9. Bxf3 {[%clk 0:02:51]}  Nc6 {[%clk 0:02:32]} 10. Be3 {[%clk 0:02:48]}  e5 {[%clk 0:02:32]} 11. d5 {[%clk 0:02:47]}  Nd4 {[%clk 0:02:31]} 12. Be2 {[%clk 0:02:42]}  c5 {[%clk 0:02:20]} 13. dxc6 {[%clk 0:02:37]}  bxc6 {[%clk 0:02:19]} 14. f3 {[%clk 0:02:36]}  Qa5 {[%clk 0:02:18]} 15. a3 {[%clk 0:02:32]}  f5 {[%clk 0:02:16]} 16. b4 {[%clk 0:02:30]}  Qd8 {[%clk 0:02:16]} 17. Bd3 {[%clk 0:02:26]}  Qe7 {[%clk 0:02:05]} 18. Re1 {[%clk 0:02:24]}  f4 {[%clk 0:02:04]} 19. Bf2 {[%clk 0:02:24]}  Bf6 {[%clk 0:01:57]} 20. Ne2 {[%clk 0:02:24]}  Bh4 {[%clk 0:01:51]} 21. Bxh4 {[%clk 0:02:19]}  Qxh4 {[%clk 0:01:51]} 22. Nxd4 {[%clk 0:02:20]}  exd4 {[%clk 0:01:51]} 23. e5 {[%clk 0:02:13]}  Nxe5 {[%clk 0:01:47]} 24. Be4 {[%clk 0:02:10]}  d3 {[%clk 0:01:38]} 25. c5 {[%clk 0:02:08]}  Qf6 {[%clk 0:01:27]} 26. Bxd3 {[%clk 0:02:06]}  d5 {[%clk 0:01:22]} 27. b5 {[%clk 0:01:56]}  Rad8 {[%clk 0:01:19]} 28. b6 {[%clk 0:01:53]}  Nd7 {[%clk 0:01:03]} 29. bxa7 {[%clk 0:01:20]}  Qd4+ {[%clk 0:01:02]} 30. Kh1 {[%clk 0:01:19]}  Qxc5 {[%clk 0:01:02]} 31. Qc2 {[%clk 0:01:15]}  Qxc2 {[%clk 0:00:57]} 32. Bxc2 {[%clk 0:01:14]}  Nb6 {[%clk 0:00:18]} 33. Re7 {[%clk 0:01:08]}  Rf7 {[%clk 0:00:18]} 34. Rae1 {[%clk 0:01:07]}  d4 {[%clk 0:00:16]} 35. Bb3 {[%clk 0:01:06]}  d3 {[%clk 0:00:14]} 36. Rxf7 {[%clk 0:00:42]}  Kh8 {[%clk 0:00:14]} 37. Rfe7 {[%clk 0:00:40]}  d2 {[%clk 0:00:11]} 38. Re8+ {[%clk 0:00:39]}  Kg7 {[%clk 0:00:12]} 39. R1e7+ {[%clk 0:00:35]}  Kf6 {[%clk 0:00:10]} 40. Rxd8 {[%clk 0:00:35]}  Kxe7 {[%clk 0:00:09]} 41. Rxd2 {[%clk 0:00:35]}  c5 {[%clk 0:00:09]} 42. Rc2 {[%clk 0:00:34]}  Kd6 {[%clk 0:00:09]} 43. Bc4 {[%clk 0:00:32]}  Kc6 {[%clk 0:00:09]} 44. a4 {[%clk 0:00:31]}  Kb7 {[%clk 0:00:09]} 45. a5 {[%clk 0:00:29]}  Nd7 {[%clk 0:00:05]} 46. a6+ {[%clk 0:00:26]}  Kxa7 {[%clk 0:00:05]} 47. Rd2 {[%clk 0:00:26]}  Nb6 {[%clk 0:00:04]} 48. Be6 {[%clk 0:00:24]}  c4 {[%clk 0:00:04]} 49. Bxc4 {[%clk 0:00:16]}  Nxc4 {[%clk 0:00:04]} 50. Rd7+ {[%clk 0:00:16]}  Kxa6 {[%clk 0:00:02]} 51. Rxh7 {[%clk 0:00:17]}  Kb5 {[%clk 0:00:02]} 52. Rg7 {[%clk 0:00:18]}  Ne5 {[%clk 0:00:02]} 53. Re7 {[%clk 0:00:17]}  Nc6 {[%clk 0:00:02]} 54. Re6 {[%clk 0:00:17]}  g5 {[%clk 0:00:02]} 55. Rg6 {[%clk 0:00:16]}  Kc5 {[%clk 0:00:02]} 56. Rxg5+ {[%clk 0:00:17]}  Kd4 {[%clk 0:00:03]} 57. Rf5 {[%clk 0:00:17]}  Ke3 {[%clk 0:00:03]} 58. h4 {[%clk 0:00:17]}  Ne7 {[%clk 0:00:02]} 59. Re5+ {[%clk 0:00:16]}  Kf2 {[%clk 0:00:03]} 60. Rxe7 {[%clk 0:00:16]}  Kg3 {[%clk 0:00:03]} 61. Rg7+ {[%clk 0:00:16]}  Kf2 {[%clk 0:00:02]} 62. Rg4 {[%clk 0:00:16]}  Ke3 {[%clk 0:00:02]} 63. h5 {[%clk 0:00:17]}  Kf2 {[%clk 0:00:02]} 64. h6 {[%clk 0:00:18]} 1-0


[Site "https://www.chess.com"]

[Event "Titled Tuesday Blitz May 24 Late 2022"]
[White "Araujo Sanchez, Josue"]
[Black "Papasimakopoulos, Alexandros"]
[WhiteFideId "6416896"]
[BlackFideId "4244125"]
[WhiteElo "2339"]
[BlackElo "2340"]
[Result "0-1"]
[Round "06"]
[TimeControl "180+1"]
[Date "2022.05.24"]
[WhiteClock "0:00:01"]
[BlackClock "0:00:14"]

1. c4 {[%clk 0:02:59]}  f5 {[%clk 0:02:44]} 2. Nf3 {[%clk 0:02:58]}  Nf6 {[%clk 0:02:44]} 3. g3 {[%clk 0:02:58]}  g6 {[%clk 0:02:45]} 4. Bg2 {[%clk 0:02:58]}  Bg7 {[%clk 0:02:45]} 5. O-O {[%clk 0:02:59]}  O-O {[%clk 0:02:45]} 6. Nc3 {[%clk 0:02:59]}  d6 {[%clk 0:02:46]} 7. d4 {[%clk 0:02:59]}  e6 {[%clk 0:02:46]} 8. Nd2 {[%clk 0:02:56]}  Nc6 {[%clk 0:02:45]} 9. d5 {[%clk 0:02:55]}  Ne5 {[%clk 0:02:37]} 10. h3 {[%clk 0:02:52]}  Rb8 {[%clk 0:02:29]} 11. f4 {[%clk 0:02:51]}  Nf7 {[%clk 0:02:29]} 12. e4 {[%clk 0:02:45]}  fxe4 {[%clk 0:02:29]} 13. Ndxe4 {[%clk 0:02:45]}  Nxe4 {[%clk 0:02:26]} 14. Nxe4 {[%clk 0:02:45]}  e5 {[%clk 0:02:18]} 15. Ng5 {[%clk 0:02:28]}  Nxg5 {[%clk 0:02:12]} 16. fxg5 {[%clk 0:02:28]}  b5 {[%clk 0:01:53]} 17. cxb5 {[%clk 0:02:27]}  Rxb5 {[%clk 0:01:54]} 18. Rxf8+ {[%clk 0:02:25]}  Bxf8 {[%clk 0:01:52]} 19. Qe2 {[%clk 0:02:24]}  Rb4 {[%clk 0:01:46]} 20. Be3 {[%clk 0:02:21]}  Be7 {[%clk 0:01:38]} 21. Qd2 {[%clk 0:02:18]}  a5 {[%clk 0:01:31]} 22. Rc1 {[%clk 0:02:17]}  Bf5 {[%clk 0:01:27]} 23. b3 {[%clk 0:02:13]}  Bd7 {[%clk 0:01:10]} 24. h4 {[%clk 0:02:07]}  Qb8 {[%clk 0:01:02]} 25. Qc2 {[%clk 0:01:56]}  Bd8 {[%clk 0:01:01]} 26. Rf1 {[%clk 0:01:55]}  Be7 {[%clk 0:00:53]} 27. Be4 {[%clk 0:01:51]}  Be8 {[%clk 0:00:49]} 28. h5 {[%clk 0:01:50]}  Kg7 {[%clk 0:00:37]} 29. h6+ {[%clk 0:01:45]}  Kg8 {[%clk 0:00:36]} 30. Bd2 {[%clk 0:01:37]}  Rb5 {[%clk 0:00:30]} 31. Bc3 {[%clk 0:01:33]}  a4 {[%clk 0:00:30]} 32. bxa4 {[%clk 0:01:32]}  Rc5 {[%clk 0:00:30]} 33. Qd2 {[%clk 0:01:27]}  Qa7 {[%clk 0:00:27]} 34. Kg2 {[%clk 0:01:24]}  Qxa4 {[%clk 0:00:28]} 35. Qd3 {[%clk 0:01:16]}  Rxc3 {[%clk 0:00:27]} 36. Qxc3 {[%clk 0:01:11]}  Qxe4+ {[%clk 0:00:28]} 37. Kg1 {[%clk 0:01:12]}  Qxd5 {[%clk 0:00:27]} 38. Kh2 {[%clk 0:01:03]}  Bc6 {[%clk 0:00:25]} 39. Qb2 {[%clk 0:01:00]}  Bb7 {[%clk 0:00:20]} 40. Rb1 {[%clk 0:00:59]}  Bc6 {[%clk 0:00:17]} 41. Qb8+ {[%clk 0:00:57]}  Bf8 {[%clk 0:00:17]} 42. Qb2 {[%clk 0:00:52]}  Qf3 {[%clk 0:00:12]} 43. Qb3+ {[%clk 0:00:44]}  Qxb3 {[%clk 0:00:11]} 44. Rxb3 {[%clk 0:00:44]}  Be7 {[%clk 0:00:11]} 45. Rc3 {[%clk 0:00:45]}  Be4 {[%clk 0:00:10]} 46. Rxc7 {[%clk 0:00:45]}  Bxg5 {[%clk 0:00:11]} 47. Rg7+ {[%clk 0:00:46]}  Kh8 {[%clk 0:00:11]} 48. Rd7 {[%clk 0:00:46]}  Bxh6 {[%clk 0:00:11]} 49. Rxd6 {[%clk 0:00:46]}  Kg7 {[%clk 0:00:11]} 50. Re6 {[%clk 0:00:46]}  Bd5 {[%clk 0:00:09]} 51. Rxe5 {[%clk 0:00:45]}  Bxa2 {[%clk 0:00:09]} 52. Re7+ {[%clk 0:00:46]}  Bf7 {[%clk 0:00:10]} 53. Ra7 {[%clk 0:00:46]}  Be3 {[%clk 0:00:09]} 54. Ra3 {[%clk 0:00:46]}  Bc5 {[%clk 0:00:09]} 55. Ra5 {[%clk 0:00:46]}  Bb4 {[%clk 0:00:09]} 56. Ra4 {[%clk 0:00:46]}  Be7 {[%clk 0:00:10]} 57. Ra7 {[%clk 0:00:47]}  Bf6 {[%clk 0:00:11]} 58. Ra6 {[%clk 0:00:47]}  h5 {[%clk 0:00:11]} 59. Ra7 {[%clk 0:00:47]}  Bd4 {[%clk 0:00:11]} 60. Rd7 {[%clk 0:00:47]}  Be5 {[%clk 0:00:12]} 61. Re7 {[%clk 0:00:47]}  Kf6 {[%clk 0:00:12]} 62. Rb7 {[%clk 0:00:48]}  h4 {[%clk 0:00:13]} 63. Rb6+ {[%clk 0:00:47]}  Kg7 {[%clk 0:00:13]} 64. Kh3 {[%clk 0:00:47]}  Bxg3 {[%clk 0:00:14]} 65. Ra6 {[%clk 0:00:46]}  Be8 {[%clk 0:00:12]} 66. Ra7+ {[%clk 0:00:45]}  Kf6 {[%clk 0:00:12]} 67. Ra6+ {[%clk 0:00:44]}  Ke7 {[%clk 0:00:13]} 68. Rb6 {[%clk 0:00:39]}  Bd7+ {[%clk 0:00:13]} 69. Kg2 {[%clk 0:00:40]}  Bf5 {[%clk 0:00:14]} 70. Ra6 {[%clk 0:00:38]}  Kf7 {[%clk 0:00:14]} 71. Rb6 {[%clk 0:00:37]}  Be5 {[%clk 0:00:14]} 72. Rb7+ {[%clk 0:00:37]}  Kf6 {[%clk 0:00:14]} 73. Rb4 {[%clk 0:00:38]}  h3+ {[%clk 0:00:14]} 74. Kg1 {[%clk 0:00:36]}  h2+ {[%clk 0:00:14]} 75. Kh1 {[%clk 0:00:35]}  Be6 {[%clk 0:00:15]} 76. Rb6 {[%clk 0:00:30]}  Kf5 {[%clk 0:00:15]} 77. Rb5 {[%clk 0:00:30]}  g5 {[%clk 0:00:15]} 78. Ra5 {[%clk 0:00:30]}  g4 {[%clk 0:00:15]} 79. Rb5 {[%clk 0:00:29]}  g3 {[%clk 0:00:16]} 80. Ra5 {[%clk 0:00:26]}  Bd7 {[%clk 0:00:15]} 81. Rc5 {[%clk 0:00:25]}  Ke6 {[%clk 0:00:16]} 82. Rc1 {[%clk 0:00:23]}  Bd4 {[%clk 0:00:16]} 83. Kg2 {[%clk 0:00:15]}  Bf2 {[%clk 0:00:14]} 84. Rc2 {[%clk 0:00:12]}  Bb5 {[%clk 0:00:12]} 85. Rc1 {[%clk 0:00:08]}  Bd3 {[%clk 0:00:11]} 86. Kh3 {[%clk 0:00:05]}  Be4 {[%clk 0:00:10]} 87. Rd1 {[%clk 0:00:01]}  h1=Q+ {[%clk 0:00:10]} 88. Rxh1 {[%clk 0:00:02]}  Bxh1 {[%clk 0:00:11]} 89. Kg4 {[%clk 0:00:02]}  g2 {[%clk 0:00:12]} 90. Kh3 {[%clk 0:00:02]}  Ke5 {[%clk 0:00:11]} 91. Kg4 {[%clk 0:00:02]}  g1=Q+ {[%clk 0:00:11]} 92. Kh5 {[%clk 0:00:01]}  Bf3+ {[%clk 0:00:11]} 93. Kh6 {[%clk 0:00:02]}  Be3+ {[%clk 0:00:11]} 94. Kh7 {[%clk 0:00:02]}  Qg5 {[%clk 0:00:12]} 95. Kh8 {[%clk 0:00:01]}  Kf6 {[%clk 0:00:13]} 96. Kh7 {[%clk 0:00:01]}  Qg7# {[%clk 0:00:14]} 0-1


[Site "https://www.chess.com"]

[Event "Titled Tuesday Blitz May 24 Late 2022"]
[White "Arnold, Ken"]
[Black "Colivet Gamboa, Julio Cesar"]
[WhiteFideId "2056836"]
[BlackFideId "3949583"]
[WhiteElo "2297"]
[BlackElo "1743"]
[Result "0-1"]
[Round "06"]
[TimeControl "180+1"]
[Date "2022.05.25"]
[WhiteClock "0:01:27"]
[BlackClock "0:02:00"]

1. d4 {[%clk 0:02:37]}  Nf6 {[%clk 0:02:58]} 2. c4 {[%clk 0:02:26]}  e6 {[%clk 0:02:58]} 3. Nf3 {[%clk 0:02:26]}  d5 {[%clk 0:02:58]} 4. cxd5 {[%clk 0:02:26]}  exd5 {[%clk 0:02:57]} 5. Nc3 {[%clk 0:02:27]}  Nc6 {[%clk 0:02:56]} 6. Bf4 {[%clk 0:02:18]}  a6 {[%clk 0:02:54]} 7. e3 {[%clk 0:02:19]}  Bf5 {[%clk 0:02:53]} 8. Rc1 {[%clk 0:02:18]}  Bd6 {[%clk 0:02:51]} 9. Bxd6 {[%clk 0:02:14]}  Qxd6 {[%clk 0:02:52]} 10. a3 {[%clk 0:02:14]}  O-O {[%clk 0:02:52]} 11. Bd3 {[%clk 0:02:13]}  Bg6 {[%clk 0:02:51]} 12. O-O {[%clk 0:02:13]}  Rfe8 {[%clk 0:02:50]} 13. Bxg6 {[%clk 0:02:12]}  hxg6 {[%clk 0:02:50]} 14. Qc2 {[%clk 0:02:12]}  Ne7 {[%clk 0:02:42]} 15. Na4 {[%clk 0:02:08]}  c6 {[%clk 0:02:41]} 16. Nb6 {[%clk 0:02:07]}  Rad8 {[%clk 0:02:38]} 17. Ne5 {[%clk 0:02:06]}  Nf5 {[%clk 0:02:36]} 18. b4 {[%clk 0:02:02]}  Ne4 {[%clk 0:02:34]} 19. Nd3 {[%clk 0:01:52]}  Qf6 {[%clk 0:02:24]} 20. Nc5 {[%clk 0:01:49]}  Qh4 {[%clk 0:02:21]} 21. g3 {[%clk 0:01:46]}  Qh3 {[%clk 0:02:18]} 22. Nxe4 {[%clk 0:01:40]}  Rxe4 {[%clk 0:02:18]} 23. Na4 {[%clk 0:01:27]}  Rh4 {[%clk 0:02:00]} 0-1


[Site "https://www.chess.com"]

[Event "Titled Tuesday Blitz May 24 Late 2022"]
[White "Baches Garcia, Guillermo"]
[Black "Prieto Aranguren, Alain"]
[WhiteFideId "2209764"]
[BlackFideId "2268906"]
[WhiteElo "2466"]
[BlackElo "2235"]
[Result "0-1"]
[Round "06"]
[TimeControl "180+1"]
[Date "2022.05.25"]
[WhiteClock "0:00:04"]
[BlackClock "0:01:44"]

1. e4 {[%clk 0:03:00]}  c6 {[%clk 0:02:59]} 2. Nc3 {[%clk 0:02:59]}  d5 {[%clk 0:02:59]} 3. Nf3 {[%clk 0:02:59]}  Bg4 {[%clk 0:02:59]} 4. h3 {[%clk 0:02:58]}  Bh5 {[%clk 0:02:59]} 5. exd5 {[%clk 0:02:54]}  cxd5 {[%clk 0:02:58]} 6. Bb5+ {[%clk 0:02:54]}  Nc6 {[%clk 0:02:59]} 7. g4 {[%clk 0:02:52]}  Bg6 {[%clk 0:02:59]} 8. Ne5 {[%clk 0:02:52]}  Rc8 {[%clk 0:02:59]} 9. d4 {[%clk 0:02:47]}  e6 {[%clk 0:02:59]} 10. h4 {[%clk 0:02:41]}  f6 {[%clk 0:02:59]} 11. Nxg6 {[%clk 0:02:33]}  hxg6 {[%clk 0:03:00]} 12. Qd3 {[%clk 0:02:28]}  Kf7 {[%clk 0:03:00]} 13. a3 {[%clk 0:02:28]}  Qb6 {[%clk 0:02:52]} 14. Be3 {[%clk 0:02:20]}  a6 {[%clk 0:02:51]} 15. Bxc6 {[%clk 0:02:18]}  bxc6 {[%clk 0:02:51]} 16. O-O-O {[%clk 0:01:52]}  Rb8 {[%clk 0:02:49]} 17. Na4 {[%clk 0:01:48]}  Qb5 {[%clk 0:02:49]} 18. Qxb5 {[%clk 0:01:40]}  cxb5 {[%clk 0:02:49]} 19. Nc5 {[%clk 0:01:31]}  Bxc5 {[%clk 0:02:42]} 20. dxc5 {[%clk 0:01:31]}  Ne7 {[%clk 0:02:42]} 21. f4 {[%clk 0:01:22]}  Nc6 {[%clk 0:02:41]} 22. b4 {[%clk 0:01:10]}  a5 {[%clk 0:02:40]} 23. c3 {[%clk 0:01:09]}  Ra8 {[%clk 0:02:40]} 24. Kb2 {[%clk 0:01:03]}  Ra6 {[%clk 0:02:35]} 25. f5 {[%clk 0:00:43]}  gxf5 {[%clk 0:02:28]} 26. gxf5 {[%clk 0:00:43]}  Ne5 {[%clk 0:02:26]} 27. fxe6+ {[%clk 0:00:39]}  Kxe6 {[%clk 0:02:26]} 28. Bd4 {[%clk 0:00:34]}  Nc4+ {[%clk 0:02:23]} 29. Kc2 {[%clk 0:00:33]}  axb4 {[%clk 0:02:22]} 30. cxb4 {[%clk 0:00:16]}  Rxa3 {[%clk 0:02:17]} 31. Rhe1+ {[%clk 0:00:15]}  Kf7 {[%clk 0:02:17]} 32. Ra1 {[%clk 0:00:12]}  Rxh4 {[%clk 0:02:09]} 33. Rxa3 {[%clk 0:00:10]}  Nxa3+ {[%clk 0:02:09]} 34. Kb3 {[%clk 0:00:09]}  Rxd4 {[%clk 0:01:48]} 35. Kxa3 {[%clk 0:00:09]}  Rc4 {[%clk 0:01:47]} 36. Kb3 {[%clk 0:00:04]}  g5 {[%clk 0:01:47]} 37. Ra1 {[%clk 0:00:03]}  g4 {[%clk 0:01:45]} 38. Ra5 {[%clk 0:00:03]}  g3 {[%clk 0:01:45]} 39. Rxb5 {[%clk 0:00:04]}  g2 {[%clk 0:01:44]} 0-1


[Site "https://www.chess.com"]

[Event "Titled Tuesday Blitz May 24 Late 2022"]
[White "Barria Zuniga, Daniel"]
[Black "Sydoryka, Vladyslav"]
[WhiteFideId "3400816"]
[BlackFideId "14145928"]
[WhiteElo "2684"]
[BlackElo "2528"]
[Result "0-1"]
[Round "06"]
[TimeControl "180+1"]
[Date "2022.05.25"]
[WhiteClock "0:00:19"]
[BlackClock "0:01:16"]

1. c4 {[%clk 0:03:00]}  c5 {[%clk 0:02:58]} 2. g3 {[%clk 0:03:01]}  Nc6 {[%clk 0:02:58]} 3. Bg2 {[%clk 0:03:02]}  g6 {[%clk 0:02:58]} 4. Nc3 {[%clk 0:03:03]}  Bg7 {[%clk 0:02:59]} 5. a3 {[%clk 0:03:04]}  e6 {[%clk 0:02:57]} 6. Rb1 {[%clk 0:03:05]}  Nge7 {[%clk 0:02:54]} 7. b4 {[%clk 0:03:06]}  cxb4 {[%clk 0:02:47]} 8. axb4 {[%clk 0:03:07]}  d5 {[%clk 0:02:48]} 9. b5 {[%clk 0:02:52]}  Na5 {[%clk 0:02:48]} 10. c5 {[%clk 0:02:45]}  O-O {[%clk 0:02:41]} 11. d4 {[%clk 0:02:43]}  b6 {[%clk 0:02:37]} 12. Ba3 {[%clk 0:02:36]}  Nc4 {[%clk 0:02:32]} 13. Bb4 {[%clk 0:02:36]}  a5 {[%clk 0:02:28]} 14. bxa6 {[%clk 0:02:34]}  Nc6 {[%clk 0:02:25]} 15. Nh3 {[%clk 0:02:07]}  Nxb4 {[%clk 0:02:22]} 16. Rxb4 {[%clk 0:02:06]}  bxc5 {[%clk 0:02:22]} 17. Rxc4 {[%clk 0:02:06]}  dxc4 {[%clk 0:02:17]} 18. Bxa8 {[%clk 0:02:03]}  Bxa6 {[%clk 0:02:16]} 19. Bf3 {[%clk 0:01:48]}  cxd4 {[%clk 0:02:15]} 20. Ne4 {[%clk 0:01:38]}  f5 {[%clk 0:02:13]} 21. Neg5 {[%clk 0:01:35]}  Qa5+ {[%clk 0:02:05]} 22. Kf1 {[%clk 0:01:33]}  e5 {[%clk 0:02:04]} 23. e4 {[%clk 0:00:43]}  c3+ {[%clk 0:01:58]} 24. Kg2 {[%clk 0:00:42]}  Qa2 {[%clk 0:01:47]} 25. exf5 {[%clk 0:00:33]}  gxf5 {[%clk 0:01:41]} 26. Qa1 {[%clk 0:00:31]}  Qxa1 {[%clk 0:01:39]} 27. Bd5+ {[%clk 0:00:30]}  Kh8 {[%clk 0:01:38]} 28. Rxa1 {[%clk 0:00:30]}  c2 {[%clk 0:01:36]} 29. Nf7+ {[%clk 0:00:20]}  Rxf7 {[%clk 0:01:35]} 30. Bxf7 {[%clk 0:00:21]}  Bb7+ {[%clk 0:01:23]} 31. Kf1 {[%clk 0:00:19]}  d3 {[%clk 0:01:17]} 32. Ke1 {[%clk 0:00:19]}  e4 {[%clk 0:01:16]} 0-1


[Site "https://www.chess.com"]

[Event "Titled Tuesday Blitz May 24 Late 2022"]
[White "Bortnyk, Olexandr"]
[Black "Gorodetzky, David"]
[WhiteFideId "14120828"]
[BlackFideId "2813416"]
[WhiteElo "2723"]
[BlackElo "2494"]
[Result "1-0"]
[Round "06"]
[TimeControl "180+1"]
[Date "2022.05.24"]
[WhiteClock "0:00:35"]
[BlackClock "0:00:02"]

1. d4 {[%clk 0:03:00]}  Nf6 {[%clk 0:02:59]} 2. Nc3 {[%clk 0:03:01]}  d5 {[%clk 0:02:59]} 3. Bf4 {[%clk 0:03:02]}  e6 {[%clk 0:02:59]} 4. Nb5 {[%clk 0:03:02]}  Bb4+ {[%clk 0:02:52]} 5. c3 {[%clk 0:03:02]}  Ba5 {[%clk 0:02:52]} 6. a4 {[%clk 0:03:03]}  a6 {[%clk 0:02:49]} 7. b4 {[%clk 0:03:03]}  Bxb4 {[%clk 0:02:49]} 8. cxb4 {[%clk 0:03:02]}  axb5 {[%clk 0:02:49]} 9. axb5 {[%clk 0:03:02]}  Rxa1 {[%clk 0:02:50]} 10. Qxa1 {[%clk 0:03:03]}  Nh5 {[%clk 0:02:47]} 11. Be5 {[%clk 0:03:02]}  f6 {[%clk 0:02:45]} 12. Bg3 {[%clk 0:03:00]}  Nd7 {[%clk 0:02:37]} 13. Qc3 {[%clk 0:02:58]}  Nxg3 {[%clk 0:02:32]} 14. hxg3 {[%clk 0:02:59]}  Nb6 {[%clk 0:02:30]} 15. e3 {[%clk 0:03:00]}  Bd7 {[%clk 0:02:29]} 16. Bd3 {[%clk 0:02:59]}  Kf7 {[%clk 0:01:52]} 17. Nf3 {[%clk 0:02:58]}  g6 {[%clk 0:01:43]} 18. g4 {[%clk 0:02:58]}  Kg7 {[%clk 0:01:41]} 19. g5 {[%clk 0:02:58]}  fxg5 {[%clk 0:01:39]} 20. Ne5 {[%clk 0:02:59]}  Be8 {[%clk 0:01:39]} 21. Ke2 {[%clk 0:02:58]}  Nd7 {[%clk 0:01:24]} 22. Rc1 {[%clk 0:02:58]}  Nxe5 {[%clk 0:01:22]} 23. dxe5 {[%clk 0:02:52]}  c6 {[%clk 0:01:23]} 24. Qc5 {[%clk 0:02:50]}  Rf8 {[%clk 0:01:21]} 25. b6 {[%clk 0:02:46]}  Rf7 {[%clk 0:01:19]} 26. Ra1 {[%clk 0:02:46]}  g4 {[%clk 0:01:15]} 27. g3 {[%clk 0:02:42]}  Qg5 {[%clk 0:01:10]} 28. Qd4 {[%clk 0:02:42]}  h5 {[%clk 0:01:01]} 29. Ra8 {[%clk 0:02:41]}  Bd7 {[%clk 0:00:46]} 30. Rb8 {[%clk 0:02:38]}  h4 {[%clk 0:00:46]} 31. Rxb7 {[%clk 0:02:25]}  hxg3 {[%clk 0:00:45]} 32. fxg3 {[%clk 0:02:25]}  Qh5 {[%clk 0:00:45]} 33. Kd2 {[%clk 0:02:25]}  Qh2+ {[%clk 0:00:44]} 34. Be2 {[%clk 0:02:25]}  Qxg3 {[%clk 0:00:34]} 35. Rc7 {[%clk 0:01:36]}  Qh2 {[%clk 0:00:16]} 36. Qxg4 {[%clk 0:00:45]}  Qh8 {[%clk 0:00:06]} 37. Bd3 {[%clk 0:00:40]}  Qh2+ {[%clk 0:00:05]} 38. Kc3 {[%clk 0:00:36]}  Kh6 {[%clk 0:00:02]} 39. Qxg6# {[%clk 0:00:35]} 1-0


[Site "https://www.chess.com"]

[Event "Titled Tuesday Blitz May 24 Late 2022"]
[White "Darini, Pouria"]
[Black "Svane, Rasmus"]
[WhiteFideId "12502200"]
[BlackFideId "4657101"]
[WhiteElo "2483"]
[BlackElo "2674"]
[Result "1-0"]
[Round "06"]
[TimeControl "180+1"]
[Date "2022.05.24"]
[WhiteClock "0:00:15"]
[BlackClock "0:00:01"]

1. d4 {[%clk 0:03:00]}  Nf6 {[%clk 0:03:00]} 2. Bf4 {[%clk 0:03:01]}  d5 {[%clk 0:02:59]} 3. e3 {[%clk 0:03:02]}  e6 {[%clk 0:02:57]} 4. Nd2 {[%clk 0:03:02]}  Bd6 {[%clk 0:02:58]} 5. Bxd6 {[%clk 0:03:02]}  Qxd6 {[%clk 0:02:59]} 6. f4 {[%clk 0:03:02]}  c5 {[%clk 0:02:57]} 7. c3 {[%clk 0:03:01]}  O-O {[%clk 0:02:55]} 8. Ngf3 {[%clk 0:03:01]}  b6 {[%clk 0:02:55]} 9. Bd3 {[%clk 0:03:01]}  a5 {[%clk 0:02:52]} 10. O-O {[%clk 0:03:00]}  Ba6 {[%clk 0:02:52]} 11. Bxa6 {[%clk 0:03:01]}  Nxa6 {[%clk 0:02:53]} 12. Ne5 {[%clk 0:03:01]}  b5 {[%clk 0:02:52]} 13. Rf3 {[%clk 0:02:49]}  b4 {[%clk 0:02:25]} 14. Rh3 {[%clk 0:02:49]}  bxc3 {[%clk 0:02:24]} 15. bxc3 {[%clk 0:02:50]}  cxd4 {[%clk 0:02:22]} 16. cxd4 {[%clk 0:02:50]}  Rfc8 {[%clk 0:01:32]} 17. g4 {[%clk 0:02:49]}  Nd7 {[%clk 0:00:59]} 18. g5 {[%clk 0:02:49]}  Nf8 {[%clk 0:00:55]} 19. Qh5 {[%clk 0:02:46]}  Ra7 {[%clk 0:00:53]} 20. Ng4 {[%clk 0:02:26]}  Qe7 {[%clk 0:00:41]} 21. Rg3 {[%clk 0:02:25]}  Kh8 {[%clk 0:00:36]} 22. Nf3 {[%clk 0:02:22]}  Nb4 {[%clk 0:00:33]} 23. Nfe5 {[%clk 0:02:13]}  Rac7 {[%clk 0:00:31]} 24. Rh3 {[%clk 0:01:43]}  Kg8 {[%clk 0:00:24]} 25. Rf1 {[%clk 0:01:21]}  Rc1 {[%clk 0:00:22]} 26. Rg3 {[%clk 0:01:17]}  Rxf1+ {[%clk 0:00:21]} 27. Kxf1 {[%clk 0:01:18]}  Ng6 {[%clk 0:00:21]} 28. Rh3 {[%clk 0:01:14]}  Nf8 {[%clk 0:00:21]} 29. a3 {[%clk 0:01:02]}  Nc6 {[%clk 0:00:17]} 30. Nf3 {[%clk 0:00:22]}  Rb8 {[%clk 0:00:15]} 31. Rg3 {[%clk 0:00:19]}  Ng6 {[%clk 0:00:10]} 32. Kg2 {[%clk 0:00:19]}  Qxa3 {[%clk 0:00:08]} 33. Rh3 {[%clk 0:00:18]}  Nf8 {[%clk 0:00:08]} 34. Nf6+ {[%clk 0:00:18]}  gxf6 {[%clk 0:00:08]} 35. gxf6 {[%clk 0:00:19]}  Rb2+ {[%clk 0:00:02]} 36. Kg3 {[%clk 0:00:19]}  Qxe3 {[%clk 0:00:02]} 37. Qh6 {[%clk 0:00:14]}  Qf2+ {[%clk 0:00:02]} 38. Kg4 {[%clk 0:00:14]}  Qg2+ {[%clk 0:00:03]} 39. Rg3 {[%clk 0:00:15]}  Qxg3+ {[%clk 0:00:01]} 40. hxg3 {[%clk 0:00:15]} 1-0


[Site "https://www.chess.com"]

[Event "Titled Tuesday Blitz May 24 Late 2022"]
[White "Drygalov, Andrey"]
[Black "Grischuk, Alexander"]
[WhiteFideId "24171735"]
[BlackFideId "4126025"]
[WhiteElo "2540"]
[BlackElo "2762"]
[Result "1/2-1/2"]
[Round "06"]
[TimeControl "180+1"]
[Date "2022.05.24"]
[WhiteClock "0:00:53"]
[BlackClock "0:00:28"]

1. e4 {[%clk 0:02:58]}  e6 {[%clk 0:03:00]} 2. d4 {[%clk 0:02:57]}  d5 {[%clk 0:03:00]} 3. Nd2 {[%clk 0:02:58]}  c5 {[%clk 0:03:00]} 4. exd5 {[%clk 0:02:58]}  Qxd5 {[%clk 0:03:01]} 5. Ngf3 {[%clk 0:02:59]}  cxd4 {[%clk 0:03:01]} 6. Bc4 {[%clk 0:02:59]}  Qd6 {[%clk 0:03:01]} 7. O-O {[%clk 0:02:59]}  Nf6 {[%clk 0:03:01]} 8. Nb3 {[%clk 0:02:59]}  Nc6 {[%clk 0:03:01]} 9. Nbxd4 {[%clk 0:02:59]}  Nxd4 {[%clk 0:03:02]} 10. Nxd4 {[%clk 0:03:00]}  Be7 {[%clk 0:03:00]} 11. c3 {[%clk 0:02:58]}  O-O {[%clk 0:02:58]} 12. Qf3 {[%clk 0:02:44]}  Qc7 {[%clk 0:02:49]} 13. Bb3 {[%clk 0:02:44]}  e5 {[%clk 0:02:39]} 14. Nf5 {[%clk 0:02:40]}  Bxf5 {[%clk 0:02:40]} 15. Qxf5 {[%clk 0:02:40]}  a5 {[%clk 0:02:40]} 16. Bg5 {[%clk 0:02:38]}  Ra6 {[%clk 0:02:04]} 17. Rfe1 {[%clk 0:02:33]}  h6 {[%clk 0:01:34]} 18. Bh4 {[%clk 0:02:24]}  e4 {[%clk 0:01:32]} 19. Bxf6 {[%clk 0:01:39]}  Rxf6 {[%clk 0:01:21]} 20. Qxe4 {[%clk 0:01:39]}  Bc5 {[%clk 0:01:20]} 21. Re2 {[%clk 0:01:37]}  g6 {[%clk 0:01:08]} 22. Rf1 {[%clk 0:01:32]}  Kg7 {[%clk 0:01:04]} 23. g3 {[%clk 0:01:26]}  Rd8 {[%clk 0:01:03]} 24. Kg2 {[%clk 0:01:26]}  Rd7 {[%clk 0:00:59]} 25. Bd5 {[%clk 0:01:15]}  b5 {[%clk 0:00:52]} 26. b3 {[%clk 0:01:07]}  Re7 {[%clk 0:00:46]} 27. Qd3 {[%clk 0:01:06]}  Rxe2 {[%clk 0:00:46]} 28. Qxe2 {[%clk 0:01:07]}  Rf5 {[%clk 0:00:34]} 29. c4 {[%clk 0:01:05]}  bxc4 {[%clk 0:00:34]} 30. bxc4 {[%clk 0:01:06]}  Qe5 {[%clk 0:00:27]} 31. Qxe5+ {[%clk 0:00:53]}  Rxe5 {[%clk 0:00:28]} 32. Kf3 {[%clk 0:00:53]}  h5 {[%clk 0:00:28]} 1/2-1/2


[Site "https://www.chess.com"]